bitfinex/quotes_BTCUSD_20240827
["timestamp","ask_amount","ask_price","bid_price","bid_amount"]
[1724799567529,0.000818,59632.0,59631.0,2.32226077]
[1724799568343,0.000818,59632.0,59631.0,2.32726077]
[1724799568931,0.000818,59632.0,59631.0,2.34126077]
[1724799569662,0.000818,59632.0,59631.0,2.35526077]
[1724799570317,0.000818,59632.0,59631.0,2.40450905]
[1724799571026,0.0117458,59637.0,59633.0,0.40332]
[1724799571284,0.0117458,59637.0,59635.0,0.5266]
[1724799571422,0.0117458,59637.0,59636.0,0.79506077]
[1724799571624,0.0117458,59637.0,59636.0,0.81806077]
[1724799572222,0.00020242,59640.0,59636.0,0.52530905]
[1724799572417,0.00020242,59640.0,59637.0,0.3539]
[1724799572567,0.00020242,59640.0,59636.0,0.52530905]
[1724799572568,0.00020242,59640.0,59638.0,0.29146077]
[1724799572779,0.00020242,59640.0,59639.0,0.3539]
[1724799572974,0.00020242,59640.0,59639.0,0.4539]
[1724799573205,0.00020242,59640.0,59639.0,0.62236077]
[1724799574811,0.00020242,59640.0,59639.0,0.4679]
[1724799575141,0.54960242,59640.0,59639.0,0.014]
[1724799575565,0.87097685,59640.0,59639.0,0.014]
[1724799575836,0.87097685,59640.0,59627.0,0.1892]
[1724799576075,0.87097685,59640.0,59639.0,0.014]
[1724799576487,0.87097685,59640.0,59627.0,0.1892]
[1724799576687,0.32137443,59634.0,59627.0,0.1892]
[1724799576824,0.32137443,59634.0,59625.0,0.3565987]
[1724799577023,0.54960242,59640.0,59625.0,0.3565987]
[1724799577024,0.32137443,59627.0,59625.0,0.0008987]
[1724799578023,0.32137443,59627.0,59625.0,0.0148987]
[1724799578545,0.32137443,59627.0,59625.0,0.0008987]
[1724799578932,0.32137443,59627.0,59625.0,0.0148987]
[1724799579809,0.32137443,59627.0,59625.0,0.0288987]
[1724799582138,0.3593,59626.0,59625.0,0.0288987]
[1724799582962,0.3593,59626.0,59625.0,0.0148987]
[1724799583303,0.3593,59626.0,59625.0,0.0008987]
[1724799583513,0.3593,59626.0,59625.0,0.0148987]
[1724799583759,0.3593,59626.0,59625.0,0.0288987]
[1724799585239,0.35909818,59626.0,59625.0,0.0288987]
[1724799586103,0.35909818,59626.0,59625.0,0.0148987]
[1724799586323,0.35909818,59626.0,59625.0,0.0008987]
[1724799586543,0.35909818,59626.0,59625.0,0.0288987]
[1724799587243,0.35909818,59626.0,59625.0,0.0148987]
[1724799587244,0.54289818,59626.0,59625.0,0.0148987]
[1724799587489,0.61357199,59626.0,59625.0,0.0288987]
[1724799587697,0.61357199,59626.0,59613.0,0.0008987]
[1724799587698,0.1838,59614.0,59613.0,0.0008987]
[1724799587950,0.50517443,59614.0,59613.0,0.0008987]
[1724799588136,0.83797443,59614.0,59613.0,0.0008987]
[1724799588590,0.83797443,59614.0,59590.0,0.1833]
[1724799588591,0.1964,59612.0,59590.0,0.1833]
[1724799588798,0.65417443,59600.0,59590.0,0.1833]
[1724799589759,0.85057443,59600.0,59590.0,0.1833]
[1724799589984,0.85057443,59600.0,59591.0,0.1]
[1724799590183,0.85057443,59600.0,59599.0,0.0148987]
[1724799591642,0.85057443,59600.0,59599.0,0.0008987]
[1724799591844,0.85157443,59600.0,59599.0,0.0008987]
[1724799592133,0.85257443,59600.0,59599.0,0.0008987]
[1724799592268,0.85157443,59600.0,59599.0,0.0008987]
[1724799592713,0.85257443,59600.0,59599.0,0.0008987]
[1724799592913,0.85157443,59600.0,59599.0,0.0008987]
[1724799593511,0.85257443,59600.0,59599.0,0.0128987]
[1724799598264,0.002,59600.0,59599.0,0.5622987]
[1724799598485,0.002,59600.0,59599.0,0.6852987]
[1724799598680,0.002,59600.0,59599.0,0.85375947]
[1724799598908,0.002,59600.0,59599.0,2.35375947]
[1724799599119,0.32137443,59620.0,59602.0,0.3515]
[1724799599291,0.32137443,59627.0,59605.0,0.3515]
[1724799599490,0.32137443,59627.0,59607.0,0.3515]
[1724799599691,0.32137443,59627.0,59609.0,0.3515]
[1724799599894,0.32137443,59627.0,59610.0,0.12635477]
[1724799600281,0.32137443,59627.0,59610.0,0.12216477]
[1724799600486,0.1926,59630.0,59610.0,0.12216477]
[1724799600487,0.001,59620.0,59610.0,0.12216477]
[1724799600689,0.32137443,59614.0,59610.0,0.09916477]
[1724799600931,0.32137443,59614.0,59603.0,0.3627]
[1724799600932,0.00335477,59613.0,59609.0,0.012]
[1724799601393,0.32137443,59614.0,59599.0,0.0008987]
[1724799601394,0.33745477,59612.0,59599.0,0.0008987]
[1724799601591,0.3426,59603.0,59599.0,0.0008987]
[1724799601835,0.00335477,59602.0,59599.0,0.0008987]
[1724799602457,0.1876,59601.0,59599.0,0.0008987]
[1724799602752,0.00335477,59600.0,59599.0,0.0148987]
[1724799602959,0.00335477,59600.0,59599.0,0.0008987]
[1724799603405,0.00335477,59600.0,59599.0,0.0148987]
[1724799603532,0.35725477,59600.0,59599.0,0.0148987]
[1724799603771,0.44387769,59600.0,59599.0,0.0148987]
[1724799603974,0.44387769,59600.0,59585.0,0.0008987]
[1724799603975,0.3539,59599.0,59585.0,0.0008987]
[1724799604179,0.32137443,59586.0,59585.0,0.0008987]
[1724799604772,0.3539,59587.0,59585.0,0.0008987]
[1724799605097,0.3247292,59586.0,59585.0,0.0008987]
[1724799605634,0.3247292,59586.0,59585.0,0.0148987]
[1724799605852,0.58679212,59586.0,59585.0,0.0148987]
[1724799606081,0.58679212,59586.0,59585.0,0.0278987]
[1724799606082,0.66784171,59586.0,59585.0,0.0278987]
[1724799606789,1.01264171,59586.0,59585.0,0.0148987]
[1724799607005,1.01264171,59586.0,59585.0,0.0008987]
[1724799607274,1.01264171,59586.0,59585.0,0.0138987]
[1724799607275,1.01364171,59586.0,59585.0,0.0138987]
[1724799607500,1.01364171,59586.0,59577.0,0.008998]
[1724799607501,0.5343,59578.0,59577.0,0.008998]
[1724799607744,0.5343,59578.0,59570.0,0.008987]
[1724799607745,0.73422402,59571.0,59570.0,0.008987]
[1724799608612,0.73422402,59571.0,59567.0,0.008998]
[1724799608613,0.005,59568.0,59567.0,0.008998]
[1724799608878,0.36155477,59568.0,59567.0,0.008998]
[1724799609086,0.54215477,59568.0,59567.0,0.008998]
[1724799609283,0.5338,59568.0,59567.0,0.008998]
[1724799609492,0.3532,59577.0,59567.0,0.008998]
[1724799609703,0.00335477,59576.0,59567.0,0.008998]
[1724799610143,0.00335477,59576.0,59570.0,0.005]
[1724799610770,0.00335477,59576.0,59567.0,0.008998]
[1724799610976,0.40242402,59585.0,59568.0,0.3385]
[1724799611154,0.002,59576.0,59569.0,1.6]
[1724799611556,0.001,59576.0,59569.0,1.6]
[1724799611794,0.001,59576.0,59569.0,0.1]
[1724799611997,0.002,59576.0,59570.0,0.014]
[1724799612183,0.001,59576.0,59570.0,0.014]
[1724799612490,0.002,59576.0,59572.0,0.3319]
[1724799612688,0.002,59576.0,59574.0,0.5195]
[1724799612813,0.001,59576.0,59575.0,0.60036077]
[1724799613008,0.001,59576.0,59575.0,0.62336077]
[1724799613273,0.002,59576.0,59575.0,0.62336077]
[1724799613649,0.001,59576.0,59575.0,0.62336077]
[1724799614024,0.001,59576.0,59575.0,0.4319]
[1724799614211,0.001,59576.0,59575.0,0.62336077]
[1724799614619,0.50540786,59591.0,59575.0,0.62336077]
[1724799614620,0.00335477,59590.0,59575.0,0.62336077]
[1724799614848,0.00335477,59590.0,59576.0,0.023]
[1724799615050,0.00335477,59590.0,59575.0,2.12336077]
[1724799615051,0.001,59576.0,59575.0,0.63736077]
[1724799615397,0.00335477,59590.0,59575.0,0.62426057]
[1724799615603,0.00335477,59590.0,59575.0,2.13926057]
[1724799615604,0.001,59576.0,59575.0,2.13926057]
[1724799615807,0.00435477,59590.0,59575.0,1.9697998]
[1724799616019,0.001,59590.0,59576.0,0.02735686]
[1724799616220,0.002,59590.0,59579.0,0.5364]
[1724799616424,0.002,59590.0,59577.0,0.17346077]
[1724799616425,0.002,59590.0,59580.0,0.29481686]
[1724799616647,0.002,59590.0,59582.0,0.5431]
[1724799616884,0.002,59590.0,59583.0,0.023]
[1724799616885,0.001,59590.0,59583.0,0.023]
[1724799617026,0.40242402,59600.0,59583.0,0.123]
[1724799617027,0.00335477,59599.0,59583.0,0.123]
[1724799617589,0.00335477,59599.0,59584.0,1.5]
[1724799617826,0.00335477,59599.0,59585.0,0.1]
[1724799618624,0.001,59590.0,59585.0,0.1]
[1724799618796,0.40242402,59593.0,59582.0,0.5431]
[1724799618797,0.00335477,59592.0,59583.0,0.1]
[1724799619008,0.40242402,59586.0,59584.0,0.014]
[1724799619214,0.00335477,59585.0,59584.0,0.014]
[1724799620808,0.00335477,59585.0,59570.0,1.5]
[1724799621029,0.00335477,59585.0,59569.0,0.5463]
[1724799621430,0.00435477,59585.0,59584.0,0.014]
[1724799621853,0.40242402,59586.0,59584.0,0.014]
[1724799622095,0.001,59585.0,59584.0,0.014]
[1724799622304,0.001,59585.0,59575.0,0.0148998]
[1724799622455,0.001,59585.0,59575.0,0.0008998]
[1724799622661,0.002,59585.0,59584.0,0.028]
[1724799623948,0.002,59585.0,59584.0,0.014]
[1724799624540,0.40242402,59586.0,59575.0,0.0148998]
[1724799624849,0.00335477,59585.0,59584.0,0.014]
[1724799625046,0.00435477,59585.0,59584.0,0.014]
[1724799625258,0.00435477,59585.0,59584.0,0.028]
[1724799625692,0.00335477,59585.0,59575.0,0.0008998]
[1724799626065,0.00335477,59585.0,59584.0,0.014]
[1724799626265,0.00435477,59585.0,59584.0,0.014]
[1724799626509,0.00435477,59585.0,59575.0,0.0008998]
[1724799627257,0.00435477,59585.0,59584.0,0.014]
[1724799627685,0.00435477,59585.0,59575.0,0.0008998]
[1724799627886,0.40242402,59578.0,59575.0,0.0008998]
[1724799628084,0.00335477,59577.0,59575.0,0.0148998]
[1724799628287,0.33345477,59577.0,59576.0,0.0009009]
[1724799629740,0.33345477,59577.0,59576.0,0.0149009]
[1724799629942,0.33445477,59577.0,59576.0,0.0149009]
[1724799631019,0.33445477,59577.0,59576.0,0.0009009]
[1724799631020,0.33345477,59577.0,59576.0,0.0009009]
[1724799631338,0.3311,59577.0,59576.0,0.0149009]
[1724799631982,0.3311,59577.0,59576.0,0.0289009]
[1724799632188,0.3301,59577.0,59576.0,0.0149009]
[1724799632387,0.3301,59577.0,59576.0,0.0139009]
[1724799632388,0.3361,59577.0,59576.0,0.0139009]
[1724799632620,0.3361,59577.0,59576.0,0.0279009]
[1724799632752,0.46825833,59577.0,59576.0,0.0279009]
[1724799633422,0.33596353,59577.0,59576.0,0.0279009]
[1724799634089,0.33496353,59577.0,59576.0,0.0009009]
[1724799634388,0.005,59576.0,59575.0,0.0008998]
[1724799634596,0.19935477,59576.0,59575.0,0.0008998]
[1724799634798,0.005,59571.0,59565.0,0.008987]
[1724799635114,0.40242402,59568.0,59565.0,0.008987]
[1724799635672,0.94991363,59568.0,59565.0,0.008987]
[1724799635903,0.94991363,59568.0,59567.0,0.022998]
[1724799636164,0.73262402,59568.0,59567.0,0.022998]
[1724799636592,0.40242402,59568.0,59567.0,0.022998]
[1724799637279,0.40242402,59568.0,59567.0,0.008998]
[1724799637620,0.40342402,59568.0,59567.0,0.022998]
[1724799637831,0.91262402,59568.0,59567.0,0.022998]
[1724799638046,0.95306642,59568.0,59567.0,0.022998]
[1724799638250,0.95906642,59568.0,59567.0,0.008998]
[1724799638447,0.9538644,59568.0,59567.0,0.008998]
[1724799638670,0.9548644,59568.0,59567.0,0.015998]
[1724799639268,0.913422,59568.0,59567.0,0.008998]
[1724799639472,0.914422,59568.0,59567.0,0.015998]
[1724799639997,0.919422,59568.0,59567.0,0.015998]
[1724799640204,0.919422,59568.0,59565.0,0.008987]
[1724799640205,0.3114,59566.0,59565.0,0.008987]
[1724799640405,0.41117951,59566.0,59565.0,0.008987]
[1724799641578,0.41117951,59566.0,59556.0,0.008987]
[1724799641579,0.005,59557.0,59556.0,0.008987]
[1724799641778,0.90612402,59557.0,59556.0,0.008987]
[1724799641992,0.90112402,59557.0,59556.0,0.008987]
[1724799642357,0.99173642,59557.0,59556.0,0.008987]
[1724799642684,0.90212402,59557.0,59556.0,0.022987]
[1724799643089,0.90712402,59557.0,59556.0,0.022987]
[1724799643350,0.93342068,59557.0,59556.0,0.022987]
[1724799644065,0.93242068,59557.0,59556.0,0.008987]
[1724799644540,0.93242068,59557.0,59543.0,0.008987]
[1724799644541,0.3015,59554.0,59543.0,0.008987]
[1724799644737,0.005,59551.0,59543.0,0.008987]
[1724799644938,0.005,59548.0,59543.0,0.008987]
[1724799645087,0.59002402,59554.0,59543.0,0.008987]
[1724799645088,0.40742402,59545.0,59543.0,0.008987]
[1724799645291,0.37893265,59544.0,59543.0,0.008987]
[1724799645521,0.47893265,59544.0,59543.0,0.008987]
[1724799645720,0.48393265,59544.0,59543.0,0.008987]
[1724799645892,0.3148,59544.0,59543.0,0.008987]
[1724799646318,0.31815477,59544.0,59543.0,0.008987]
[1724799646493,0.3148,59544.0,59543.0,0.008987]
[1724799646915,0.31815477,59544.0,59543.0,0.008987]
[1724799647319,0.005,59540.0,59539.0,0.008998]
[1724799647479,0.48775477,59540.0,59539.0,0.008998]
[1724799647678,0.53673025,59540.0,59539.0,0.008998]
[1724799648761,0.53773025,59540.0,59539.0,0.008998]
[1724799649165,0.53773025,59540.0,59539.0,0.010998]
[1724799649611,0.53773025,59540.0,59497.0,0.005]
[1724799649612,0.53773025,59540.0,59493.0,0.009009]
[1724799649613,0.005,59523.0,59493.0,0.009009]
[1724799649759,0.005,59496.0,59483.0,0.50540786]
[1724799649949,0.336018,59521.0,59483.0,0.50540786]
[1724799649950,0.00335477,59495.0,59486.0,0.3201]
[1724799650153,0.3139,59515.0,59481.0,0.0116718]
[1724799650154,0.40242402,59499.0,59488.0,0.3201]
[1724799650356,0.3139,59515.0,59482.0,0.005]
[1724799650357,0.3139,59515.0,59489.0,0.1928]
[1724799650559,0.05097548,59540.0,59481.0,0.0116718]
[1724799650560,0.00436817,59522.0,59498.0,0.005]
[1724799650717,0.05377302,59539.0,59506.0,0.2954]
[1724799650718,0.50540786,59521.0,59506.0,0.2954]
[1724799650920,0.40242402,59525.0,59508.0,0.2954]
[1724799651121,0.40242402,59525.0,59511.0,0.2954]
[1724799651423,0.40242402,59518.0,59511.0,0.2954]
[1724799651675,0.40242402,59518.0,59512.0,0.1]
[1724799651947,0.67329686,59563.0,59513.0,0.48686077]
[1724799651948,0.32852963,59541.0,59513.0,0.48686077]
[1724799652088,0.32852963,59541.0,59516.0,0.1827]
[1724799652089,0.001,59525.0,59516.0,0.1827]
[1724799652290,0.002,59525.0,59519.0,0.1827]
[1724799652491,0.002,59525.0,59520.0,0.1]
[1724799652492,0.50540786,59521.0,59520.0,0.1]
[1724799652846,0.40242402,59521.0,59520.0,0.1]
[1724799653048,0.44286642,59521.0,59512.0,0.1827]
[1724799653250,0.002,59525.0,59512.0,0.1827]
[1724799653251,0.00335477,59520.0,59513.0,0.1]
[1724799653759,0.40242402,59515.0,59513.0,0.1]
[1724799653889,0.00335477,59514.0,59513.0,0.1]
[1724799654276,0.40242402,59515.0,59513.0,0.1]
[1724799654836,0.40242402,59515.0,59513.0,0.1009009]
[1724799654977,0.001,59514.0,59513.0,0.0009009]
[1724799655184,0.001,59514.0,59513.0,0.3250009]
[1724799656388,0.40242402,59515.0,59513.0,0.3170009]
[1724799656839,0.40442402,59515.0,59513.0,0.3280009]
[1724799657255,0.00335477,59514.0,59513.0,0.3280009]
[1724799657410,0.001,59514.0,59513.0,0.3280009]
[1724799657631,0.40442402,59515.0,59513.0,0.3170009]
[1724799657632,0.40242402,59515.0,59513.0,0.3170009]
[1724799657844,0.00445404,59532.0,59513.0,0.3170009]
[1724799658192,0.002,59515.0,59513.0,0.3290009]
[1724799658416,0.001,59515.0,59513.0,0.3290009]
[1724799658620,0.40242402,59517.0,59513.0,0.3170009]
[1724799658828,0.00335477,59516.0,59513.0,0.3170009]
[1724799659220,0.40242402,59515.0,59513.0,0.3170009]
[1724799659697,0.40242402,59515.0,59514.0,0.1]
[1724799659894,0.001,59515.0,59514.0,0.1]
[1724799660227,0.001,59516.0,59514.0,0.1]
[1724799660451,0.40242402,59515.0,59514.0,0.1]
[1724799660659,0.40342402,59515.0,59514.0,0.1]
[1724799660858,0.40442402,59515.0,59514.0,0.1]
[1724799661063,0.40242402,59515.0,59514.0,0.1]
[1724799661287,0.40242402,59515.0,59513.0,0.3170009]
[1724799661532,0.40242402,59515.0,59514.0,0.011]
[1724799662114,0.002,59516.0,59514.0,0.011]
[1724799662733,0.001,59516.0,59514.0,0.011]
[1724799662973,0.40242402,59523.0,59513.0,0.3170009]
[1724799663258,0.002,59515.0,59514.0,0.011]
[1724799663641,0.001,59515.0,59513.0,0.3170009]
[1724799663970,0.001,59516.0,59513.0,0.3170009]
[1724799664141,0.002,59516.0,59514.0,0.011]
[1724799664567,0.00335477,59522.0,59513.0,0.3170009]
[1724799665944,0.001,59515.0,59513.0,0.3280009]
[1724799666371,0.02630867,59529.0,59513.0,0.3280009]
[1724799666372,0.00335477,59521.0,59514.0,0.1]
[1724799666603,0.08344872,59572.0,59517.0,0.2887]
[1724799666604,0.005,59540.0,59517.0,0.2887]
[1724799666925,0.3023,59547.0,59513.0,0.0119009]
[1724799666926,0.3023,59517.0,59513.0,0.0119009]
[1724799667169,0.19305477,59516.0,59513.0,0.0119009]
[1724799667374,0.19305477,59516.0,59513.0,0.0009009]
[1724799667524,0.19305477,59516.0,59514.0,0.0119009]
[1724799667525,0.00835477,59515.0,59514.0,0.0119009]
[1724799667726,0.00917377,59515.0,59514.0,0.0119009]
[1724799667924,0.005819,59515.0,59514.0,0.0119009]
[1724799668349,0.304519,59515.0,59514.0,0.0119009]
[1724799668530,0.35805777,59515.0,59514.0,0.0119009]
[1724799668860,0.35805777,59515.0,59475.0,0.067371]
[1724799668861,0.35805777,59515.0,59482.0,0.50540786]
[1724799668862,0.1865,59506.0,59482.0,0.50540786]
[1724799669185,0.40242402,59484.0,59482.0,0.50540786]
[1724799669317,0.40242402,59484.0,59481.0,0.0116718]
[1724799669318,0.00335477,59483.0,59481.0,0.0116718]
[1724799670170,0.40242402,59491.0,59481.0,0.0116718]
[1724799670428,0.2987,59499.0,59481.0,0.0116718]
[1724799670429,0.00335477,59490.0,59481.0,0.0116718]
[1724799670589,0.40242402,59498.0,59483.0,0.1873]
[1724799670590,0.50876263,59497.0,59483.0,0.1873]
[1724799670939,0.50876263,59497.0,59481.0,0.0256718]
[1724799670940,0.40242402,59484.0,59481.0,0.0256718]
[1724799671157,0.00335477,59483.0,59481.0,0.0396718]
[1724799671351,0.00335477,59483.0,59481.0,0.0256718]
[1724799672438,0.00335477,59483.0,59481.0,0.0116718]
[1724799672950,0.00435477,59483.0,59481.0,0.0236718]
[1724799673581,0.00335477,59483.0,59481.0,0.0246718]
[1724799673939,0.00335477,59483.0,59481.0,0.0356718]
[1724799673940,0.00435477,59483.0,59481.0,0.0356718]
[1724799674278,0.00435477,59483.0,59481.0,0.0246718]
[1724799674481,0.00435477,59483.0,59481.0,0.0226718]
[1724799674482,0.00535477,59483.0,59481.0,0.0226718]
[1724799675741,0.00335477,59483.0,59481.0,0.0116718]
[1724799675945,0.00335477,59483.0,59481.0,0.0206718]
[1724799676098,0.001,59483.0,59481.0,0.0326718]
[1724799676292,0.1869,59510.0,59483.0,0.2869]
[1724799676512,0.1869,59510.0,59486.0,0.2869]
[1724799676513,0.50540786,59505.0,59486.0,0.2869]
[1724799676713,0.40577879,59509.0,59485.0,0.1964]
[1724799676714,0.00335477,59504.0,59488.0,0.2869]
[1724799677056,0.00335477,59508.0,59489.0,0.123]
[1724799679405,0.00335477,59508.0,59489.0,0.137]
[1724799679649,0.50540786,59507.0,59489.0,0.1]
[1724799679929,0.40242402,59495.0,59489.0,0.007]
[1724799680138,0.40242402,59495.0,59489.0,0.02]
[1724799680139,0.00335477,59494.0,59489.0,0.02]
[1724799680339,0.00335477,59494.0,59482.0,0.308]
[1724799680544,0.00335477,59494.0,59489.0,0.007]
[1724799680747,0.00335477,59494.0,59489.0,0.021]
[1724799681475,0.00335477,59494.0,59489.0,0.007]
[1724799681926,0.00335477,59493.0,59483.0,0.1]
[1724799682152,0.00335477,59493.0,59489.0,0.009]
[1724799682881,0.00335477,59493.0,59489.0,0.023]
[1724799683124,0.40242402,59495.0,59483.0,0.1]
[1724799683125,0.00335477,59494.0,59483.0,0.1]
[1724799683383,0.2975,59501.0,59481.0,0.0125716]
[1724799683384,0.40242402,59484.0,59481.0,0.0125716]
[1724799683597,0.4881,59490.0,59481.0,0.0125716]
[1724799683598,0.00335477,59483.0,59481.0,0.0125716]
[1724799683822,0.00335477,59489.0,59482.0,0.3044]
[1724799684222,0.03131943,59501.0,59484.0,0.3044]
[1724799684223,0.02631943,59501.0,59484.0,0.3044]
[1724799684422,0.3049,59504.0,59484.0,0.3044]
[1724799684423,0.40242402,59495.0,59484.0,0.3044]
[1724799684620,0.00335477,59494.0,59484.0,0.3044]
[1724799685247,0.00335477,59494.0,59483.0,0.1957]
[1724799685248,0.40242402,59488.0,59483.0,0.009]
[1724799685420,0.00335477,59487.0,59483.0,0.009]
[1724799686027,0.00335477,59487.0,59481.0,0.0265716]
[1724799686435,0.00335477,59487.0,59484.0,0.009]
[1724799686839,0.00335477,59487.0,59481.0,0.0125716]
[1724799687056,0.00335477,59487.0,59484.0,0.006]
[1724799687235,0.00335477,59487.0,59483.0,0.014]
[1724799687728,0.00335477,59487.0,59484.0,0.014]
[1724799687880,0.00335477,59487.0,59483.0,0.014]
[1724799688286,0.00335477,59487.0,59481.0,0.0125716]
[1724799688482,0.40242402,59488.0,59481.0,0.0125716]
[1724799688710,0.40242402,59488.0,59481.0,0.0265716]
[1724799689061,0.00335477,59487.0,59482.0,0.3076]
[1724799689274,0.00335477,59487.0,59484.0,0.014]
[1724799689422,0.00335477,59487.0,59481.0,0.0205716]
[1724799689854,0.40242402,59488.0,59481.0,0.0265716]
[1724799690083,0.40242402,59488.0,59481.0,0.0125716]
[1724799690277,0.40242402,59488.0,59482.0,0.009]
[1724799690457,0.40242402,59495.0,59482.0,0.023]
[1724799690658,0.40242402,59495.0,59485.0,0.1896]
[1724799691180,0.00335477,59494.0,59485.0,0.1896]
[1724799691544,0.40242402,59502.0,59485.0,0.1896]
[1724799691751,0.40242402,59502.0,59487.0,0.2895]
[1724799691999,0.00335477,59501.0,59488.0,0.1]
[1724799692447,0.40242402,59495.0,59488.0,0.1]
[1724799692657,0.00335477,59494.0,59488.0,0.1]
[1724799693273,0.00335477,59494.0,59488.0,0.121]
[1724799693474,0.00335477,59494.0,59488.0,0.007]
[1724799693687,0.00335477,59494.0,59485.0,0.1896]
[1724799693888,0.00335477,59494.0,59488.0,0.014]
[1724799694100,0.00335477,59494.0,59485.0,0.1896]
[1724799694437,0.00335477,59494.0,59493.0,0.00020234]
[1724799695205,0.04393265,59494.0,59493.0,0.00020234]
[1724799695995,0.33563265,59494.0,59493.0,0.00020234]
[1724799696166,0.29505477,59494.0,59493.0,0.00820234]
[1724799696367,0.29505477,59494.0,59493.0,0.02220234]
[1724799696750,0.29505477,59494.0,59493.0,0.01420234]
[1724799697092,0.29505477,59494.0,59493.0,0.02120234]
[1724799697746,0.3674348,59494.0,59493.0,0.00720234]
[1724799698286,0.3674348,59494.0,59493.0,0.00020234]
[1724799698698,0.29505477,59494.0,59493.0,0.00520234]
[1724799698905,0.29505477,59494.0,59481.0,0.0125716]
[1724799698906,0.286,59493.0,59481.0,0.0125716]
[1724799699102,0.68342402,59482.0,59481.0,0.0125716]
[1724799700314,0.68342402,59482.0,59481.0,0.0245716]
[1724799700514,0.68342402,59482.0,59481.0,0.0125716]
[1724799700757,0.40242402,59482.0,59481.0,0.0125716]
[1724799700959,0.40242402,59482.0,59481.0,0.0255716]
[1724799701366,0.40242402,59482.0,59481.0,0.0295716]
[1724799701924,0.40242402,59482.0,59481.0,0.0255716]
[1724799702136,0.40242402,59482.0,59481.0,0.0355716]
[1724799702336,0.40242402,59482.0,59481.0,0.0225716]
[1724799702572,0.40242402,59482.0,59481.0,0.0125716]
[1724799702767,0.40242402,59482.0,59481.0,0.0265716]
[1724799702998,0.40342402,59482.0,59481.0,0.0345716]
[1724799703250,0.40342402,59482.0,59481.0,0.0205716]
[1724799703811,0.40342402,59482.0,59481.0,0.0345716]
[1724799704237,0.40342402,59482.0,59481.0,0.0205716]
[1724799705231,0.40242402,59482.0,59481.0,0.0125716]
[1724799705448,0.40242402,59482.0,59481.0,0.0225716]
[1724799705875,0.40242402,59482.0,59481.0,0.0125716]
[1724799706101,0.40242402,59482.0,59481.0,0.0265716]
[1724799706305,0.40242402,59482.0,59481.0,0.0355716]
[1724799706812,0.40242402,59482.0,59481.0,0.0265716]
[1724799707133,0.40242402,59482.0,59456.0,0.50540786]
[1724799707134,0.1921,59480.0,59456.0,0.50540786]
[1724799707296,0.40242402,59470.0,59457.0,0.2938]
[1724799707457,0.00335477,59469.0,59457.0,0.2938]
[1724799707667,0.000818,59483.0,59466.0,0.4791]
[1724799707978,0.000818,59483.0,59467.0,0.16846077]
[1724799708179,0.000818,59483.0,59468.0,0.1803]
[1724799708300,0.000818,59483.0,59469.0,0.16846077]
[1724799708670,0.000818,59483.0,59470.0,0.3033]
[1724799708857,0.000818,59483.0,59470.0,0.47176077]
[1724799709271,0.000818,59483.0,59481.0,0.009]
[1724799709272,0.29885477,59482.0,59481.0,0.009]
[1724799709484,0.29885477,59482.0,59454.0,0.009009]
[1724799709485,0.62181417,59482.0,59459.0,0.1803]
[1724799709678,0.62181417,59482.0,59460.0,0.50540786]
[1724799709679,0.3229594,59468.0,59460.0,0.50540786]
[1724799709877,0.3229594,59468.0,59459.0,0.1803]
[1724799710121,0.2955,59481.0,59459.0,0.1803]
[1724799710328,0.40389798,59475.0,59470.0,0.008]
[1724799710445,0.29885477,59474.0,59470.0,0.008]
[1724799710640,0.29885477,59474.0,59459.0,0.1803]
[1724799710849,0.29885477,59474.0,59460.0,0.2938]
[1724799711042,0.001,59468.0,59460.0,0.2938]
[1724799711465,0.001,59468.0,59461.0,0.1]
[1724799712099,0.002,59468.0,59467.0,0.4791]
[1724799712314,0.002,59468.0,59467.0,0.64256077]
[1724799712315,0.001,59468.0,59467.0,0.64256077]
[1724799712609,0.000818,59483.0,59471.0,0.005]
[1724799712840,0.001,59474.0,59472.0,0.64256077]
[1724799713063,0.001,59474.0,59473.0,0.12636209]
[1724799713289,0.001,59474.0,59473.0,0.29146077]
[1724799713512,0.000818,59483.0,59473.0,0.29146077]
[1724799713765,0.000818,59483.0,59474.0,0.16846077]
[1724799713989,0.000818,59483.0,59475.0,0.123]
[1724799713990,0.001818,59483.0,59475.0,0.123]
[1724799714191,0.000818,59483.0,59475.0,0.123]
[1724799714418,0.00335477,59487.0,59483.0,0.000208]
[1724799715598,0.0500539,59506.0,59483.0,0.000208]
[1724799715599,0.4892,59484.0,59483.0,0.000208]
[1724799716043,0.4892,59484.0,59483.0,0.013208]
[1724799716340,0.4892,59484.0,59483.0,0.020208]
[1724799716551,0.4892,59484.0,59483.0,0.006708]
[1724799716744,0.4892,59484.0,59467.0,0.2946998]
[1724799716962,0.00335477,59483.0,59467.0,0.2946998]
[1724799717716,0.40389798,59469.0,59467.0,0.0008998]
[1724799717930,0.00335477,59468.0,59467.0,0.0008998]
[1724799718149,0.006,59484.0,59467.0,0.0008998]
[1724799718150,0.69869798,59476.0,59467.0,0.0008998]
[1724799718629,0.00335477,59475.0,59467.0,0.0008998]
[1724799719503,0.3007,59474.0,59467.0,0.0078998]
[1724799719727,0.40389798,59469.0,59467.0,0.0008998]
[1724799719959,0.00335477,59468.0,59467.0,0.0018998]
[1724799720258,0.00335477,59468.0,59467.0,0.0098998]
[1724799720482,0.00335477,59468.0,59467.0,0.0018998]
[1724799720739,0.49185477,59468.0,59467.0,0.0018998]
[1724799720948,0.58193005,59468.0,59467.0,0.0013998]
[1724799721176,0.58193005,59468.0,59454.0,0.009009]
[1724799721177,0.005,59459.0,59454.0,0.009009]
[1724799721391,0.40389798,59455.0,59454.0,0.009009]
[1724799721608,0.69809798,59455.0,59454.0,0.009009]
[1724799721776,0.78790778,59455.0,59454.0,0.009009]
[1724799722245,0.78790778,59455.0,59423.0,0.490609]
[1724799722246,0.98080778,59455.0,59423.0,0.490609]
[1724799722452,0.98080778,59455.0,59423.0,0.009009]
[1724799722453,0.88109798,59430.0,59423.0,0.009009]
[1724799722688,1.00309596,59430.0,59423.0,0.009009]
[1724799722897,0.39106437,59429.0,59423.0,0.009009]
[1724799723117,0.005,59426.0,59423.0,0.009009]